fUSD/lending_fUSD_20241216
["ID","MTS","AMOUNT","RATE_DAILY","PERIOD"]
[345566148,1734354722923,-500.0,0.00021917,3]
[345566149,1734354722933,-590.46067935,0.00021917,3]
[345566150,1734354722943,-770.82,0.00021917,3]
[345566151,1734354722952,-504.23133349,0.00021917,3]
[345566152,1734354722962,-500.0,0.00021917,3]
[345566153,1734354722971,-535.3228607,0.00021917,3]
[345566154,1734354722981,-500.0,0.00021917,3]
[345566155,1734354722991,-770.82,0.00021917,3]
[345566156,1734354723000,-500.0,0.00021917,3]
[345566157,1734354723011,-770.82,0.00021917,3]
[345566158,1734354723027,-500.0,0.00021917,3]
[345566159,1734354723038,-500.0,0.00021917,3]
[345566160,1734354723048,-770.82,0.00021917,3]
[345566161,1734354723058,-500.0,0.00021917,3]
[345566162,1734354723068,-500.0,0.00021917,3]
[345566163,1734354723078,-770.82,0.00021917,3]
[345566164,1734354723088,-500.0,0.00021917,3]
[345566165,1734354723098,-500.0,0.00021917,3]
[345566166,1734354723108,-565.77776041,0.00021917,3]
[345566167,1734354723118,-500.0,0.00021917,3]
[345566168,1734354723128,-770.82,0.00021917,3]
[345566169,1734354723139,-500.0,0.00021917,3]
[345566170,1734354723149,-500.0,0.00021917,3]
[345566171,1734354723160,-500.0,0.00021917,3]
[345566172,1734354723170,-770.82,0.00021917,3]
[345566173,1734354723180,-500.0,0.00021917,3]
[345566174,1734354723190,-500.0,0.00021917,3]
[345566175,1734354723200,-500.0,0.00021917,3]
[345566176,1734354723210,-770.82,0.00021917,3]
[345566177,1734354723220,-500.0,0.00021917,3]
[345566178,1734354723229,-500.0,0.00021917,3]
[345566179,1734354723243,-500.0,0.00021917,3]
[345566180,1734354723253,-500.0,0.00021917,3]
[345566181,1734354723265,-770.82,0.00021917,3]
[345566182,1734354723275,-500.0,0.00021917,3]
[345566183,1734354723285,-500.0,0.00021917,3]
[345566184,1734354723295,-500.0,0.00021917,3]
[345566185,1734354723305,-500.0,0.00021917,3]
[345566186,1734354723315,-500.0,0.00021917,3]
[345566187,1734354723326,-500.0,0.00021917,3]
[345566188,1734354723336,-506.16958205,0.00021917,3]
[345566189,1734354723346,-770.82,0.00021917,3]
[345566190,1734354723355,-500.0,0.00021917,3]
[345566191,1734354723364,-500.0,0.00021917,3]
[345566192,1734354723374,-500.0,0.00021917,3]
[345566193,1734354723383,-500.0,0.00021917,3]
[345566194,1734354723392,-500.0,0.00021917,3]
[345566195,1734354723402,-500.0,0.00021917,3]
[345566196,1734354723412,-770.82,0.00021917,3]
[345566197,1734354723423,-500.0,0.00021917,3]
[345566198,1734354723432,-500.0,0.00021917,3]
[345566199,1734354723442,-500.0,0.00021917,3]
[345566200,1734354723451,-500.0,0.00021917,3]
[345566201,1734354723460,-770.82,0.00021917,3]
[345566202,1734354723470,-500.0,0.00021917,3]
[345566203,1734354723479,-500.0,0.00021917,3]
[345566204,1734354723489,-500.0,0.00021917,3]
[345566205,1734354723498,-617.58347926,0.00021917,3]
[345566206,1734354723508,-500.0,0.00021917,3]
[345566207,1734354723522,-500.0,0.00021917,3]
[345566208,1734354723532,-500.0,0.00021917,3]
[345566209,1734354723541,-500.0,0.00021917,3]
[345566210,1734354723551,-500.0,0.00021917,3]
[345566211,1734354723560,-303.77134649,0.00021917,3]
[345566212,1734354723570,-770.82,0.00021917,3]
[345566213,1734354723579,-500.0,0.00021917,3]
[345566214,1734354723588,-500.0,0.00021917,3]
[345566215,1734354723598,-500.0,0.00021917,3]
[345566216,1734354723607,-500.0,0.00021917,3]
[345566217,1734354723617,-770.82,0.00021917,3]
[345566218,1734354723626,-500.0,0.00021917,3]
[345566219,1734354723636,-500.0,0.00021917,3]
[345566220,1734354723646,-500.0,0.00021917,3]
[345566221,1734354723656,-500.0,0.00021917,3]
[345566222,1734354723666,-770.82,0.00021917,3]
[345566223,1734354723676,-514.19297063,0.00021917,3]
[345566224,1734354723686,-426.82,0.00021917,3]
[345566225,1734354723696,-500.0,0.00021917,3]
[345566226,1734354723706,-312.37693949,0.00021917,3]
[345566227,1734354723716,-500.0,0.00021917,3]
[345566228,1734354723725,-770.82,0.00021917,3]
[345566229,1734354723735,-500.0,0.00021917,3]
[345566230,1734354723746,-160.05994364,0.00021917,3]
[345566231,1734354723756,-500.0,0.00021917,3]
[345566232,1734354723769,-513.579,0.00021918,2]
[345566233,1734354723779,-150.0,0.00021918,5]
[345566234,1734354723789,-247.0,0.0002192,2]
[345566235,1734354723799,-500.0,0.00021945,2]
[345566236,1734354723809,-356.8620818,0.00021945,2]
[345566237,1734354723818,-988.58,0.00021962,7]
[345566238,1734354723828,-988.58,0.00021962,7]
[345566239,1734354723838,-988.58,0.00021962,7]
[345566240,1734354723848,-988.58,0.00021962,7]
[345566241,1734354723859,-543.22238011,0.00021967,2]
[345566242,1734354723869,-151.162044,0.00021968,2]
[345566243,1734354723878,-500.0,0.00021973,2]
[345566244,1734354723887,-2000.0,0.00022,2]
[345566245,1734354724077,-2000.0,0.00022,2]
[345566246,1734354724109,-500.0,0.00022,2]
[345566247,1734354724119,-500.0,0.00022,2]
[345566248,1734354724128,-500.0,0.00022,2]
[345566249,1734354724138,-500.0,0.00022,2]
[345566250,1734354724148,-500.0,0.00022,2]
[345566251,1734354724158,-500.0,0.00022,2]
[345566252,1734354724167,-500.0,0.00022,2]
[345566253,1734354724177,-500.0,0.00022,2]
[345566254,1734354724187,-500.0,0.00022,2]
[345566255,1734354724198,-500.0,0.00022,2]
[345566256,1734354724207,-500.0,0.00022,2]
[345566257,1734354724217,-500.0,0.00022,2]
[345566258,1734354724227,-500.0,0.00022,2]
[345566259,1734354724236,-500.0,0.00022,2]
[345566260,1734354724250,-500.0,0.00022,2]
[345566261,1734354724260,-500.0,0.00022,2]
[345566262,1734354724272,-500.0,0.00022,2]
[345566263,1734354724281,-500.0,0.00022,2]
[345566264,1734354724291,-900.0,0.00022,2]
[345566265,1734354724301,-522.69667333,0.00022,2]
[345566266,1734354724310,-510.29123749,0.00022,2]
[345566267,1734354724320,-508.11885949,0.00022,2]
[345566268,1734354724330,-500.0,0.00022,2]
[345566269,1734354724339,-803.38818576,0.00022,2]
[345566270,1734354724349,-500.0,0.00022,2]
[345566271,1734354724358,-500.0,0.00022,2]
[345566272,1734354724368,-500.0,0.00022,2]
[345566273,1734354724378,-909.97403071,0.00022,2]
[345566274,1734354724387,-2000.0,0.00022,2]
[345566275,1734354724397,-2000.0,0.00022,2]
[345566276,1734354724406,-2000.0,0.00022,2]
[345566277,1734354724415,-2000.0,0.00022,2]
[345566278,1734354724424,-2000.0,0.00022,2]
[345566279,1734354724434,-1000.0,0.00022,2]
[345566280,1734354724443,-1000.0,0.00022,2]
[345566281,1734354724453,-1000.0,0.00022,2]
[345566282,1734354724462,-1000.0,0.00022,2]
[345566283,1734354724473,-1000.0,0.00022,2]
[345566284,1734354724482,-1000.0,0.00022,2]
[345566285,1734354724491,-500.0,0.00022,2]
[345566286,1734354724500,-710.65044906,0.00022,2]
[345566287,1734354724510,-2000.0,0.00022,2]
[345566288,1734354724521,-2000.0,0.00022,2]
[345566289,1734354724531,-500.0,0.00022,2]
[345566290,1734354724541,-500.0,0.00022,2]
[345566291,1734354724551,-500.0,0.00022,2]
[345566292,1734354724561,-500.0,0.00022,2]
[345566293,1734354724570,-500.0,0.00022,2]
[345566294,1734354724580,-500.0,0.00022,2]
[345566295,1734354724590,-500.0,0.00022,2]
[345566296,1734354724599,-500.0,0.00022,2]
[345566297,1734354724609,-500.0,0.00022,2]
[345566298,1734354724618,-500.0,0.00022,2]
[345566299,1734354724627,-500.0,0.00022,2]
[345566300,1734354724636,-800.0,0.00022,2]
[345566301,1734354724645,-500.0,0.00022,2]
[345566302,1734354724655,-500.0,0.00022,2]
[345566303,1734354724665,-500.0,0.00022,2]
[345566304,1734354724675,-500.0,0.00022,2]
[345566305,1734354724684,-500.0,0.00022,2]
[345566306,1734354724703,-500.0,0.00022,2]
[345566307,1734354724714,-500.0,0.00022,2]
[345566308,1734354724724,-500.0,0.00022,2]
[345566309,1734354724734,-800.0,0.00022,2]
[345566310,1734354724743,-500.0,0.00022,2]
[345566311,1734354724754,-500.0,0.00022,2]
[345566312,1734354724764,-500.0,0.00022,2]
[345566313,1734354724774,-500.0,0.00022,2]
[345566314,1734354724784,-500.0,0.00022,2]
[345566315,1734354724794,-500.0,0.00022,2]
[345566316,1734354724804,-500.0,0.00022,2]
[345566317,1734354724814,-500.0,0.00022,2]
[345566318,1734354724825,-500.0,0.00022,2]
[345566319,1734354724834,-500.0,0.00022,2]
[345566320,1734354724844,-500.0,0.00022,2]
[345566321,1734354724854,-500.0,0.00022,2]
[345566322,1734354724864,-500.0,0.00022,2]
[345566323,1734354724874,-500.0,0.00022,2]
[345566324,1734354724884,-700.0,0.00022,2]
[345566325,1734354724893,-600.0,0.00022,2]
[345566326,1734354724903,-500.0,0.00022,2]
[345566327,1734354724913,-500.0,0.00022,2]
[345566328,1734354724923,-500.0,0.00022,2]
[345566329,1734354724932,-500.0,0.00022,2]
[345566330,1734354724942,-500.0,0.00022,2]
[345566331,1734354724951,-500.0,0.00022,2]
[345566332,1734354724961,-500.0,0.00022,2]
[345566333,1734354724970,-800.0,0.00022,2]
[345566334,1734354724980,-500.0,0.00022,2]
[345566335,1734354724989,-500.0,0.00022,2]
[345566336,1734354724999,-500.0,0.00022,2]
[345566337,1734354725008,-500.0,0.00022,2]
[345566338,1734354725020,-500.0,0.00022,2]
[345566339,1734354725029,-500.0,0.00022,2]
[345566340,1734354725040,-500.0,0.00022,2]
[345566341,1734354725049,-500.0,0.00022,2]
[345566342,1734354725059,-500.0,0.00022,2]
[345566343,1734354725068,-600.0,0.00022,2]
[345566344,1734354725078,-2000.0,0.00022,2]
[345566345,1734354725088,-419551.24412633,0.00022,2]
[345566346,1734354725098,-500.0,0.00022,2]
[345566347,1734354725107,-500.0,0.00022,2]
[345566348,1734354725116,-500.0,0.00022,2]
[345566349,1734354725126,-500.0,0.00022,2]
[345566350,1734354725135,-500.0,0.00022,2]
[345566351,1734354725145,-500.0,0.00022,2]
[345566352,1734354725154,-2000.0,0.00022,2]
[345566353,1734354725164,-500.0,0.00022,2]
[345566354,1734354725173,-500.0,0.00022,2]
[345566355,1734354725183,-500.0,0.00022,2]
[345566356,1734354725192,-500.0,0.00022,2]
[345566357,1734354725203,-500.0,0.00022,2]
[345566358,1734354725212,-500.0,0.00022,2]
[345566359,1734354725222,-500.0,0.00022,2]
[345566360,1734354725231,-616.2957021,0.00022,2]
[345566361,1734354725242,-500.0,0.00022,2]
[345566362,1734354725252,-966.37861184,0.00022,2]
[345566363,1734354725261,-955.66981419,0.00022,2]
[345566364,1734354725272,-500.0,0.00022,2]
[345566365,1734354725281,-500.0,0.00022,2]
[345566366,1734354725291,-500.0,0.00022,2]
[345566367,1734354725302,-500.0,0.00022,2]
[345566368,1734354725311,-500.0,0.00022,2]
[345566369,1734354725320,-500.0,0.00022,2]
[345566370,1734354725329,-500.0,0.00022,2]
[345566371,1734354725339,-500.0,0.00022,2]
[345566372,1734354725349,-500.0,0.00022,2]
[345566373,1734354725359,-500.0,0.00022,2]
[345566374,1734354725369,-500.0,0.00022,2]
[345566375,1734354725378,-500.0,0.00022,2]
[345566376,1734354725387,-937.081433,0.00022,2]
[345566377,1734354725397,-500.0,0.00022,2]
[345566378,1734354725407,-500.0,0.00022,2]
[345566379,1734354725416,-500.0,0.00022,2]
[345566380,1734354725426,-500.0,0.00022,2]
[345566381,1734354725435,-903.44474415,0.00022,2]
[345566382,1734354725444,-500.0,0.00022,2]
[345566383,1734354725454,-638.49152282,0.00022,2]
[345566384,1734354725463,-758.09480349,0.00022,2]
[345566385,1734354725473,-500.0,0.00022,2]
[345566386,1734354725483,-673.53082311,0.00022,2]
[345566387,1734354725492,-500.0,0.00022,2]
[345566388,1734354725502,-918.8624071,0.00022,2]
[345566389,1734354725511,-500.0,0.00022,2]
[345566390,1734354725522,-500.0,0.00022,2]
[345566391,1734354725532,-500.0,0.00022,2]
[345566392,1734354725541,-500.0,0.00022,2]
[345566393,1734354725551,-500.0,0.00022,2]
[345566394,1734354725560,-853.78154975,0.00022,2]
[345566395,1734354725570,-500.0,0.00022,2]
[345566396,1734354725580,-500.0,0.00022,2]
[345566397,1734354725589,-502.75043402,0.00022,2]
[345566398,1734354725598,-1394.25801657,0.00022,7]
[345566399,1734354725607,-2000.0,0.00022,30]
[345566400,1734354725616,-5000.41274451,0.00022,5]
[345566401,1734354725626,-500.0,0.00022,2]
[345566402,1734354725635,-500.0,0.00022,2]
[345566403,1734354725644,-500.0,0.00022,2]
[345566404,1734354725653,-500.0,0.00022,2]
[345566405,1734354725663,-500.0,0.00022,2]
[345566406,1734354725673,-500.0,0.00022,2]
[345566407,1734354725682,-500.0,0.00022,2]
[345566408,1734354725692,-500.0,0.00022,2]
[345566409,1734354725701,-500.0,0.00022,2]
[345566410,1734354725711,-500.0,0.00022,2]
[345566411,1734354725721,-500.0,0.00022,2]
[345566412,1734354725730,-500.0,0.00022,2]
[345566413,1734354725740,-500.0,0.00022,2]
[345566414,1734354725749,-500.0,0.00022,2]
[345566415,1734354725758,-500.0,0.00022,2]
[345566416,1734354725770,-500.0,0.00022,2]
[345566417,1734354725781,-500.0,0.00022,2]
[345566418,1734354725791,-500.0,0.00022,2]
[345566419,1734354725800,-500.0,0.00022,2]
[345566420,1734354725810,-800.0,0.00022,2]
[345566421,1734354725819,-500.0,0.00022,2]
[345566422,1734354725829,-800.0,0.00022,2]
[345566423,1734354725838,-500.0,0.00022,2]
[345566424,1734354725848,-500.0,0.00022,2]
[345566425,1734354725857,-500.0,0.00022,2]
[345566426,1734354725866,-500.0,0.00022,2]
[345566427,1734354725876,-500.0,0.00022,2]
[345566428,1734354725885,-500.0,0.00022,2]
[345566429,1734354725894,-500.0,0.00022,2]
[345566430,1734354725903,-500.0,0.00022,2]
[345566431,1734354725913,-700.0,0.00022,2]
[345566432,1734354725922,-500.0,0.00022,2]
[345566433,1734354725931,-500.0,0.00022,2]
[345566434,1734354725940,-500.0,0.00022,2]
[345566435,1734354725949,-500.0,0.00022,2]
[345566436,1734354725958,-500.0,0.00022,2]
[345566437,1734354725968,-500.0,0.00022,2]
[345566438,1734354725977,-500.0,0.00022,2]
[345566439,1734354725986,-500.0,0.00022,2]
[345566440,1734354725995,-500.0,0.00022,2]
[345566441,1734354726004,-500.0,0.00022,2]
[345566442,1734354726013,-500.0,0.00022,2]
[345566443,1734354726023,-500.0,0.00022,2]
[345566444,1734354726032,-500.0,0.00022,2]
[345566445,1734354726042,-500.0,0.00022,2]
[345566446,1734354726052,-500.0,0.00022,2]
[345566447,1734354726062,-500.0,0.00022,2]
[345566448,1734354726071,-713.77,0.00022051,2]
[345566449,1734354726082,-356.8620818,0.00022055,2]
[345566450,1734354726091,-1192.80511,0.00022088,7]
[345566451,1734354726101,-356.8620818,0.00022164,2]
[345566452,1734354726110,-177.191222,0.00022197,2]
[345566453,1734354726119,-200.0,0.00022211,2]
[345566454,1734354726128,-153.0,0.00022211,2]
[345566455,1734354726137,-153.0,0.00022211,2]
[345566456,1734354726147,-153.0,0.00022211,2]
[345566457,1734354726156,-153.0,0.00022211,2]
[345566458,1734354726166,-153.0,0.00022211,2]
[345566459,1734354726175,-153.0,0.00022211,2]
[345566460,1734354726185,-153.0,0.00022211,2]
[345566461,1734354726194,-999.0,0.00022219,7]
[345566462,1734354726204,-999.0,0.00022219,7]
[345566463,1734354726213,-999.0,0.00022219,7]
[345566464,1734354726223,-999.0,0.00022219,7]
[345566465,1734354726233,-999.0,0.00022219,7]
[345566466,1734354726245,-999.0,0.00022219,7]
[345566467,1734354726255,-999.0,0.00022219,7]
[345566468,1734354726266,-999.0,0.00022219,7]
[345566469,1734354726275,-999.0,0.00022219,7]
[345566470,1734354726284,-999.0,0.00022219,7]
[345566471,1734354726294,-999.0,0.00022219,7]
[345566472,1734354726303,-999.0,0.00022219,7]
[345566473,1734354726312,-999.0,0.00022219,7]
[345566474,1734354726322,-999.0,0.00022219,7]
[345566475,1734354726331,-999.0,0.00022219,7]
[345566476,1734354726340,-999.0,0.00022219,7]
[345566477,1734354726349,-999.0,0.00022219,7]
[345566478,1734354726358,-999.0,0.00022219,7]
[345566479,1734354726368,-999.0,0.00022219,7]
[345566480,1734354726377,-999.0,0.00022219,7]
[345566481,1734354726387,-999.0,0.00022219,7]
[345566482,1734354726396,-1038.03337384,0.00022219,7]
[345566483,1734354726405,-153.0,0.0002222,2]
[345566484,1734354726414,-988.58,0.00022235,7]
[345566485,1734354726423,-988.58,0.00022235,7]
[345566486,1734354726432,-397.77,0.00022247,2]
[345566487,1734354726441,-900.0,0.0002226,2]
[345566488,1734354726450,-356.8620818,0.00022274,2]
[345566489,1734354726459,-1192.80511,0.00022288,7]
[345566490,1734354726469,-151.162044,0.00022328,2]
[345566491,1734354726478,-356.8620818,0.00022356,2]
[345566492,1734354726487,-211.0,0.0002236,2]
[345566493,1734354726496,-204.0,0.0002236,2]
[345566494,1734354726505,-247.0,0.0002236,2]
[345566495,1734354726516,-2000.0,0.00022363,2]
[345566496,1734354726525,-1439.0,0.00022393,2]
[345566497,1734354726534,-1000.0,0.000224,120]
[345566498,1734354726544,-150.0,0.00022408,2]
[345566499,1734354726554,-150.0,0.00022408,2]
[345566500,1734354726564,-150.0,0.00022408,2]
[345566501,1734354726576,-150.0,0.00022408,2]
[345566502,1734354726585,-150.0,0.00022408,2]
[345566503,1734354726594,-3882.0,0.00022457,2]
[345566504,1734354726603,-1168.0,0.00022457,2]
[345566505,1734354726612,-150.0,0.00022457,2]
[345566506,1734354726621,-13738.0,0.00022457,2]
[345566507,1734354726631,-350.0,0.00022465,2]
[345566508,1734354726642,-358.27607024,0.00022465,2]
[345566509,1734354726652,-356.8620818,0.00022466,2]
[345566510,1734354726661,-1192.80511,0.00022488,7]
[345566511,1734354726671,-389.13311578,0.00022491,2]
[345566512,1734354726680,-150.0,0.00022499,2]
[345566513,1734354726690,-1000.0,0.00022499,2]
[345566514,1734354726700,-37837.13208778,0.00022499,4]
[345566515,1734354726710,-2900.0,0.000225,15]
[345566516,1734354726719,-33884.77173823,0.000225,2]
[345566517,1734354726729,-2561.07695254,0.000225,2]
[345566518,1734354726738,-202.4,0.000225,2]
[345566519,1734354726748,-12105.64177757,0.000225,2]
[345566520,1734354726757,-6273.0,0.000225,3]
[345566521,1734354726769,-1405.44,0.000225,2]
[345566522,1734354726779,-330.0,0.000225,10]
[345566523,1734354726788,-699.08,0.00022501,2]
[345566524,1734354726798,-988.58,0.00022508,7]
[345566525,1734354726807,-988.58,0.00022508,7]
[345566526,1734354726816,-153.0,0.00022514,2]
[345566527,1734354726828,-153.0,0.00022514,2]
[345566528,1734354726838,-153.0,0.00022514,2]
[345566529,1734354726848,-153.0,0.00022514,2]
[345566530,1734354726858,-164.0,0.00022514,2]
[345566531,1734354726867,-1178.87,0.00022548,2]
[345566532,1734354726876,-356.8620818,0.00022575,2]
[345566533,1734354726886,-153.0,0.00022605,2]
[345566534,1734354726895,-153.0,0.00022605,2]
[345566535,1734354726905,-153.0,0.00022605,2]
[345566536,1734354726915,-153.0,0.00022605,2]
[345566537,1734354726926,-153.0,0.00022605,2]
[345566538,1734354726935,-153.0,0.00022605,2]
[345566539,1734354726944,-153.0,0.00022605,2]
[345566540,1734354726953,-153.0,0.00022607,2]
[345566541,1734354726962,-153.0,0.00022607,2]
[345566542,1734354726971,-153.0,0.00022607,2]
[345566543,1734354726980,-1439.0,0.00022624,2]
[345566544,1734354726989,-150.0,0.00022656,2]
[345566545,1734354726999,-150.0,0.00022656,2]
[345566546,1734354727009,-2008.0,0.00022656,2]
[345566547,1734354727020,-632.0,0.00022656,2]
[345566548,1734354727031,-150.0,0.00022656,2]
[345566549,1734354727041,-1896.0,0.00022656,2]
[345566550,1734354727050,-817.0,0.00022656,2]
[345566551,1734354727059,-929.0,0.00022656,2]
[345566552,1734354727069,-2553.077,0.00022656,2]
[345566553,1734354727078,-1254.0,0.00022656,2]
[345566554,1734354727087,-3632.0,0.00022656,2]
[345566555,1734354727096,-535.0,0.00022656,2]
[345566556,1734354727106,-356.8620818,0.00022685,2]
[345566557,1734354727115,-1192.80511,0.00022688,7]
[345566558,1734354727125,-151.162044,0.00022688,2]
[345566559,1734354727134,-3000.0,0.000227,2]
[345566560,1734354727144,-999.0,0.00022739,4]
[345566561,1734354727154,-988.58,0.00022781,7]
[345566562,1734354727163,-988.58,0.00022781,7]
[345566563,1734354727175,-356.8620818,0.00022795,2]
[345566564,1734354727184,-211.0,0.000228,2]
[345566565,1734354727194,-204.0,0.000228,2]
[345566566,1734354727203,-247.0,0.000228,2]
[345566567,1734354727213,-5918.72840811,0.00022852,7]
[345566568,1734354727222,-1439.0,0.00022855,2]
[345566569,1734354727232,-587.89,0.000229,31]
[345566570,1734354727243,-587.89,0.000229,31]
[345566571,1734354727253,-587.89,0.000229,31]
[345566572,1734354727263,-587.89,0.000229,31]
[345566573,1734354727274,-587.89,0.000229,31]
[345566574,1734354727283,-587.89,0.000229,31]
[345566575,1734354727293,-587.89,0.000229,31]
[345566576,1734354727302,-587.89,0.000229,31]
[345566577,1734354727313,-587.89,0.000229,31]
[345566578,1734354727324,-587.89,0.000229,31]
[345566579,1734354727335,-587.89,0.000229,31]
[345566580,1734354727344,-587.89,0.000229,31]
[345566581,1734354727354,-587.89,0.000229,31]
[345566582,1734354727363,-587.89,0.000229,31]
[345566583,1734354727373,-587.89,0.000229,31]
[345566584,1734354727383,-587.89,0.000229,31]
[345566585,1734354727392,-356.8620818,0.00022904,2]
[345566586,1734354727402,-11000.0,0.00023,2]
[345566587,1734354727412,-3600.0,0.00023,24]
[345566588,1734354727421,-418.24094194,0.00023,120]
[345566589,1734354727431,-5063.90424551,0.00023,2]
[345566590,1734354727441,-103115.41411191,0.00023,2]
[345566591,1734354727452,-2000.0,0.00023,30]
[345566592,1734354727463,-330.0,0.00023,11]
[345566593,1734354727472,-200.0,0.00023,2]
[345566594,1734354727483,-267.15001215,0.0002301,2]
[345566595,1734354727492,-988.58,0.00023055,7]
[345566596,1734354727502,-988.58,0.00023055,7]
[345566597,1734354727510,-1439.0,0.00023086,2]
[345566598,1734354727522,-682.32315261,0.00023086,2]
[345566599,1734354727531,-1192.80511,0.00023088,7]
[345566600,1734354727540,-2000.0,0.00023133,2]
[345566601,1734354727549,-49814.31097811,0.000232,2]
[345566602,1734354727559,-567.16834215,0.0002322,2]
[345566603,1734354727568,-202.0,0.0002324,2]
[345566604,1734354727578,-211.0,0.0002324,2]
[345566605,1734354727588,-204.0,0.0002324,2]
[345566606,1734354727597,-247.0,0.0002324,2]
[345566607,1734354727607,-5000.0,0.00023287,20]
[345566608,1734354727617,-1192.80511,0.00023288,7]
[345566609,1734354727627,-1439.0,0.00023317,2]
[345566610,1734354727636,-988.58,0.00023328,7]
[345566611,1734354727646,-988.58,0.00023328,7]
[345566612,1734354727655,-900.0,0.00023356,2]
[345566613,1734354727664,-500.0,0.00023356,2]
[345566614,1734354727674,-1000.0,0.000234,120]
[345566615,1734354727683,-1192.80511,0.00023488,7]
[345566616,1734354727693,-330.0,0.000235,11]
[345566617,1734354727703,-1439.0,0.00023548,2]
[345566618,1734354727712,-50000.0,0.0002356,2]
[345566619,1734354727722,-2354.75029,0.0002359,2]
[345566620,1734354727731,-333.121617,0.00023598,12]
[345566621,1734354727741,-333.121617,0.00023598,10]
[345566622,1734354727751,-333.121617,0.00023598,8]
[345566623,1734354727761,-303.121617,0.00023598,4]
[345566624,1734354727772,-988.58,0.00023601,7]
[345566625,1734354727781,-988.58,0.00023601,7]
[345566626,1734354727790,-716915.2193139,0.0002361,7]
[345566627,1734354727799,-202.0,0.0002368,2]
[345566628,1734354727809,-211.0,0.0002368,2]
[345566629,1734354727818,-204.0,0.0002368,2]
[345566630,1734354727827,-247.0,0.0002368,2]
[345566631,1734354727837,-1192.80511,0.00023688,7]
[345566632,1734354727846,-250.121617,0.00023698,2]
[345566633,1734354727856,-250.121617,0.00023698,4]
[345566634,1734354727865,-333.121617,0.00023698,8]
[345566635,1734354727875,-333.121617,0.00023698,10]
[345566636,1734354727884,-333.121617,0.00023698,12]
[345566637,1734354727893,-150.0,0.00023768,120]
[345566638,1734354727903,-1439.0,0.00023779,2]
[345566639,1734354727912,-333.121617,0.00023798,2]
[345566640,1734354727921,-333.121617,0.00023798,4]
[345566641,1734354727930,-333.121617,0.00023798,8]
[345566642,1734354727940,-250.121617,0.00023798,12]
[345566643,1734354727949,-250.121617,0.00023798,10]
[345566644,1734354727958,-988.58,0.00023874,7]
[345566645,1734354727967,-988.58,0.00023874,7]
[345566646,1734354727977,-787.49,0.00023886,2]
[345566647,1734354727986,-333.121617,0.00023898,10]